fUSD/lending_fUSD_20250308
["ID","MTS","AMOUNT","RATE_DAILY","PERIOD"]
[355635450,1741416635910,-500.0,8.219e-05,2]
[355635451,1741416635919,-500.0,8.219e-05,2]
[355635452,1741416635929,-500.0,8.219e-05,2]
[355635453,1741416635939,-500.0,8.219e-05,2]
[355635454,1741416635948,-500.0,8.219e-05,2]
[355635455,1741416635957,-1713.9,8.219e-05,2]
[355635456,1741416635967,-500.0,8.219e-05,2]
[355635457,1741416635975,-500.0,8.219e-05,2]
[355635458,1741416635984,-500.0,8.219e-05,2]
[355635459,1741416635994,-840.1,8.219e-05,2]
[355635460,1741416636003,-500.0,8.219e-05,2]
[355635461,1741416636012,-500.0,8.219e-05,2]
[355635462,1741416636021,-350.0,8.219e-05,2]
[355635463,1741416636031,-2123.41,8.219e-05,2]
[355635464,1741416636040,-500.0,8.219e-05,2]
[355635465,1741416636049,-865.09,8.219e-05,2]
[355635466,1741416636059,-500.0,8.219e-05,2]
[355635467,1741416636068,-500.0,8.219e-05,2]
[355635468,1741416636078,-1685.83,8.219e-05,2]
[355635469,1741416636087,-500.0,8.219e-05,2]
[355635470,1741416636096,-753.85,8.219e-05,2]
[355635471,1741416636106,-500.0,8.219e-05,2]
[355635472,1741416636116,-904.05,8.219e-05,2]
[355635473,1741416636125,-500.0,8.219e-05,2]
[355635474,1741416636136,-500.0,8.219e-05,2]
[355635475,1741416636145,-500.0,8.219e-05,2]
[355635476,1741416636155,-666.45,8.219e-05,2]
[355635477,1741416636165,-2690.94,8.219e-05,2]
[355635478,1741416636174,-158.191224,8.219e-05,2]
[355635479,1741416636183,-500.0,8.219e-05,2]
[355635480,1741416636194,-500.0,8.219e-05,2]
[355635481,1741416636203,-500.0,8.219e-05,2]
[355635482,1741416636213,-500.0,8.219e-05,2]
[355635483,1741416636221,-500.0,8.219e-05,2]
[355635484,1741416636231,-500.0,8.219e-05,2]
[355635485,1741416636239,-500.0,8.219e-05,2]
[355635486,1741416636247,-500.0,8.219e-05,2]
[355635487,1741416636256,-500.0,8.219e-05,2]
[355635488,1741416636265,-500.0,8.219e-05,2]
[355635489,1741416636273,-1127.72,8.219e-05,2]
[355635490,1741416636282,-500.0,8.219e-05,2]
[355635491,1741416636291,-500.0,8.219e-05,2]
[355635492,1741416636299,-504.23926594,8.219e-05,2]
[355635493,1741416636308,-500.0,8.219e-05,2]
[355635494,1741416636316,-500.0,8.219e-05,2]
[355635495,1741416636325,-500.0,8.219e-05,2]
[355635496,1741416636334,-500.0,8.219e-05,2]
[355635497,1741416636343,-500.0,8.219e-05,2]
[355635498,1741416636352,-911.24,8.219e-05,2]
[355635499,1741416636360,-500.0,8.219e-05,2]
[355635500,1741416636369,-1244.21,8.219e-05,2]
[355635501,1741416636378,-500.0,8.219e-05,2]
[355635502,1741416636387,-502.26751895,8.219e-05,2]
[355635503,1741416636396,-940.27,8.219e-05,2]
[355635504,1741416636406,-500.0,8.219e-05,2]
[355635505,1741416636415,-500.0,8.219e-05,2]
[355635506,1741416636423,-1141.82,8.219e-05,2]
[355635507,1741416636433,-504.77230787,8.219e-05,2]
[355635508,1741416636442,-500.0,8.219e-05,2]
[355635509,1741416636450,-4057.4,8.219e-05,2]
[355635510,1741416636459,-500.0,8.219e-05,2]
[355635511,1741416636468,-500.0,8.219e-05,2]
[355635512,1741416636477,-949.87,8.219e-05,2]
[355635513,1741416636486,-882.01,8.219e-05,2]
[355635514,1741416636497,-1044.29,8.219e-05,2]
[355635515,1741416636509,-535.61307096,8.219e-05,2]
[355635516,1741416636518,-1391.97,8.219e-05,2]
[355635517,1741416636527,-500.0,8.219e-05,2]
[355635518,1741416636536,-500.0,8.219e-05,2]
[355635519,1741416636546,-500.0,8.219e-05,2]
[355635520,1741416636555,-500.0,8.219e-05,2]
[355635521,1741416636564,-987.8,8.219e-05,2]
[355635522,1741416636574,-1503.6,8.219e-05,2]
[355635523,1741416636584,-165.503875,8.219e-05,2]
[355635524,1741416636594,-599.32660979,8.219e-05,2]
[355635525,1741416636603,-2071.12,8.219e-05,2]
[355635526,1741416636612,-1739.36,8.219e-05,2]
[355635527,1741416636622,-500.0,8.219e-05,2]
[355635528,1741416636631,-500.0,8.219e-05,2]
[355635529,1741416636639,-788.3,8.219e-05,2]
[355635530,1741416636648,-500.0,8.219e-05,2]
[355635531,1741416636656,-500.0,8.219e-05,2]
[355635532,1741416636665,-500.0,8.219e-05,2]
[355635533,1741416636674,-500.0,8.219e-05,2]
[355635534,1741416636683,-500.0,8.219e-05,2]
[355635535,1741416636692,-500.0,8.219e-05,2]
[355635536,1741416636702,-500.0,8.219e-05,2]
[355635537,1741416636711,-500.0,8.219e-05,2]
[355635538,1741416636719,-812.07,8.219e-05,2]
[355635539,1741416636728,-500.0,8.219e-05,2]
[355635540,1741416636738,-1266.75,8.219e-05,2]
[355635541,1741416636747,-770.03,8.219e-05,2]
[355635542,1741416636756,-500.0,8.219e-05,2]
[355635543,1741416636764,-2243.45,8.219e-05,2]
[355635544,1741416636774,-500.0,8.219e-05,2]
[355635545,1741416636782,-1162.87,8.219e-05,2]
[355635546,1741416636791,-279.96119918,8.219e-05,2]
[355635547,1741416636800,-500.0,8.219e-05,2]
[355635548,1741416636809,-1597.68,8.219e-05,2]
[355635549,1741416636818,-500.0,8.219e-05,2]
[355635550,1741416636827,-1405.97,8.219e-05,2]
[355635551,1741416636836,-500.0,8.219e-05,2]
[355635552,1741416636844,-500.0,8.219e-05,2]
[355635553,1741416636853,-821.99,8.219e-05,2]
[355635554,1741416636862,-500.0,8.219e-05,2]
[355635555,1741416636871,-500.0,8.219e-05,2]
[355635556,1741416636880,-1889.14,8.219e-05,2]
[355635557,1741416636889,-502.61833697,8.219e-05,2]
[355635558,1741416636898,-500.0,8.219e-05,2]
[355635559,1741416636907,-570.9,8.219e-05,2]
[355635560,1741416636916,-2278.07,8.219e-05,2]
[355635561,1741416636926,-500.0,8.219e-05,2]
[355635562,1741416636936,-631.91414338,8.219e-05,2]
[355635563,1741416636945,-500.0,8.219e-05,2]
[355635564,1741416636955,-500.0,8.219e-05,2]
[355635565,1741416636964,-500.0,8.219e-05,2]
[355635566,1741416636974,-2472.22,8.219e-05,2]
[355635567,1741416636983,-500.0,8.219e-05,2]
[355635568,1741416636992,-500.0,8.219e-05,2]
[355635569,1741416637002,-912.18,8.219e-05,2]
[355635570,1741416637011,-500.0,8.219e-05,2]
[355635571,1741416637021,-1325.83,8.219e-05,2]
[355635572,1741416637030,-2543.0,8.219e-05,2]
[355635573,1741416637040,-841.46,8.219e-05,2]
[355635574,1741416637049,-553.36,8.219e-05,2]
[355635575,1741416637058,-2187.11,8.219e-05,2]
[355635576,1741416637068,-936.52,8.219e-05,2]
[355635577,1741416637077,-500.0,8.219e-05,2]
[355635578,1741416637086,-500.87302475,8.219e-05,2]
[355635579,1741416637095,-500.0,8.219e-05,2]
[355635580,1741416637104,-500.0,8.219e-05,2]
[355635581,1741416637113,-500.0,8.219e-05,2]
[355635582,1741416637121,-355.80261707,8.219e-05,2]
[355635583,1741416637131,-500.0,8.219e-05,2]
[355635584,1741416637139,-500.0,8.219e-05,2]
[355635585,1741416637148,-500.36,8.219e-05,2]
[355635586,1741416637156,-500.0,8.219e-05,2]
[355635587,1741416637165,-500.0,8.219e-05,2]
[355635588,1741416637173,-504.67088703,8.219e-05,2]
[355635589,1741416637182,-2236.97,8.219e-05,2]
[355635590,1741416637191,-500.0,8.219e-05,2]
[355635591,1741416637200,-259.70631361,8.219e-05,2]
[355635592,1741416637208,-500.0,8.219e-05,2]
[355635593,1741416637218,-500.0,8.219e-05,2]
[355635594,1741416637227,-500.0,8.219e-05,2]
[355635595,1741416637236,-500.0,8.219e-05,2]
[355635596,1741416637245,-500.0,8.219e-05,2]
[355635597,1741416637254,-1971.62,8.219e-05,2]
[355635598,1741416637263,-500.0,8.219e-05,2]
[355635599,1741416637272,-500.0,8.219e-05,2]
[355635600,1741416637281,-500.0,8.219e-05,2]
[355635601,1741416637290,-1497.0,8.219e-05,2]
[355635602,1741416637299,-500.0,8.219e-05,2]
[355635603,1741416637308,-596.15,8.219e-05,2]
[355635604,1741416637317,-824.23,8.219e-05,2]
[355635605,1741416637326,-873.61,8.219e-05,2]
[355635606,1741416637335,-1114.88,8.219e-05,2]
[355635607,1741416637344,-500.0,8.219e-05,2]
[355635608,1741416637352,-500.0,8.219e-05,2]
[355635609,1741416637361,-2370.29,8.219e-05,2]
[355635610,1741416637371,-500.0,8.219e-05,2]
[355635611,1741416637380,-500.0,8.219e-05,2]
[355635612,1741416637389,-500.0,8.219e-05,2]
[355635613,1741416637398,-500.0,8.219e-05,2]
[355635614,1741416637407,-1572.94,8.219e-05,2]
[355635615,1741416637416,-704.4,8.219e-05,2]
[355635616,1741416637426,-500.0,8.219e-05,2]
[355635617,1741416637436,-500.0,8.219e-05,2]
[355635618,1741416637445,-500.0,8.219e-05,2]
[355635619,1741416637455,-500.0,8.219e-05,2]
[355635620,1741416637465,-1111.98,8.219e-05,2]
[355635621,1741416637474,-2355.58,8.219e-05,2]
[355635622,1741416637484,-892.89,8.219e-05,2]
[355635623,1741416637494,-500.0,8.219e-05,2]
[355635624,1741416637510,-158.191225,8.219e-05,2]
[355635625,1741416637519,-500.0,8.219e-05,2]
[355635626,1741416637529,-500.0,8.219e-05,2]
[355635628,1741416637538,-501.36033659,8.219e-05,2]
[355635629,1741416637549,-660.15,8.219e-05,2]
[355635630,1741416637560,-500.0,8.219e-05,2]
[355635631,1741416637569,-503.14156215,8.219e-05,2]
[355635633,1741416637580,-500.0,8.219e-05,2]
[355635634,1741416637589,-503.86110648,8.219e-05,2]
[355635635,1741416637599,-500.0,8.219e-05,2]
[355635636,1741416637608,-500.0,8.219e-05,2]
[355635637,1741416637618,-1409.79,8.219e-05,2]
[355635638,1741416637627,-500.0,8.219e-05,2]
[355635640,1741416637636,-626.14993335,8.219e-05,2]
[355635641,1741416637646,-500.0,8.219e-05,2]
[355635642,1741416637655,-1478.09,8.219e-05,2]
[355635643,1741416637665,-500.0,8.219e-05,2]
[355635644,1741416637674,-500.0,8.219e-05,2]
[355635645,1741416637684,-500.0,8.219e-05,2]
[355635646,1741416637693,-500.0,8.219e-05,2]
[355635647,1741416637702,-500.0,8.219e-05,2]
[355635648,1741416637711,-501.22158106,8.219e-05,2]
[355635649,1741416637721,-500.0,8.219e-05,2]
[355635650,1741416637870,-500.0,8.219e-05,2]
[355635651,1741416637879,-1231.91,8.219e-05,2]
[355635652,1741416637889,-500.0,8.219e-05,2]
[355635653,1741416637899,-500.0,8.219e-05,2]
[355635654,1741416637908,-500.0,8.219e-05,2]
[355635655,1741416637917,-500.0,8.219e-05,2]
[355635656,1741416637926,-1617.96,8.219e-05,2]
[355635657,1741416637935,-500.0,8.219e-05,2]
[355635658,1741416637944,-603.84,8.219e-05,2]
[355635659,1741416637953,-500.0,8.219e-05,2]
[355635660,1741416637963,-500.0,8.219e-05,2]
[355635661,1741416637972,-14521.24,8.219e-05,2]
[355635662,1741416637981,-1567.28,8.219e-05,2]
[355635663,1741416637991,-500.0,8.219e-05,2]
[355635664,1741416638000,-1207.1,8.219e-05,2]
[355635665,1741416638010,-501.04168582,8.219e-05,2]
[355635666,1741416638019,-502.19449505,8.219e-05,2]
[355635667,1741416638029,-2350.06,8.219e-05,2]
[355635668,1741416638039,-500.0,8.219e-05,2]
[355635669,1741416638048,-500.0,8.219e-05,2]
[355635670,1741416638058,-500.0,8.219e-05,2]
[355635671,1741416638067,-500.0,8.219e-05,2]
[355635673,1741416638076,-686.59,8.219e-05,2]
[355635675,1741416638086,-500.0,8.219e-05,2]
[355635677,1741416638095,-500.0,8.219e-05,2]
[355635679,1741416638104,-500.0,8.219e-05,2]
[355635681,1741416638114,-2603.93,8.219e-05,2]
[355635683,1741416638123,-1154.16,8.219e-05,2]
[355635685,1741416638132,-2865.86,8.219e-05,2]
[355635686,1741416638141,-502.34872343,8.219e-05,2]
[355635688,1741416638150,-500.0,8.219e-05,2]
[355635689,1741416638160,-3026.37,8.219e-05,2]
[355635690,1741416638169,-10188.89,8.219e-05,2]
[355635691,1741416638179,-8637.7,8.219e-05,2]
[355635692,1741416638188,-501.25566938,8.219e-05,2]
[355635693,1741416638197,-3731.1,8.219e-05,2]
[355635694,1741416638208,-500.0,8.219e-05,2]
[355635696,1741416638217,-500.0,8.219e-05,2]
[355635698,1741416638227,-500.0,8.219e-05,2]
[355635701,1741416638237,-500.0,8.219e-05,2]
[355635702,1741416638246,-500.0,8.219e-05,2]
[355635704,1741416638256,-500.0,8.219e-05,2]
[355635707,1741416638265,-500.0,8.219e-05,2]
[355635709,1741416638274,-1359.66,8.219e-05,2]
[355635711,1741416638283,-2353.05,8.219e-05,2]
[355635713,1741416638292,-500.0,8.219e-05,2]
[355635714,1741416638301,-899.19,8.219e-05,2]
[355635716,1741416638310,-502.9570028,8.219e-05,2]
[355635718,1741416638319,-854.0,8.219e-05,2]
[355635720,1741416638328,-501.2814337,8.219e-05,2]
[355635722,1741416638337,-500.0,8.219e-05,2]
[355635724,1741416638347,-355.84996412,8.219e-05,2]
[355635726,1741416638356,-4305.97,8.219e-05,2]
[355635728,1741416638365,-1507.29,8.219e-05,2]
[355635730,1741416638374,-2238.1,8.219e-05,2]
[355635732,1741416638382,-153.78220414,8.219e-05,2]
[355635733,1741416638391,-2906.82,8.219e-05,2]
[355635734,1741416638400,-500.0,8.219e-05,2]
[355635735,1741416638409,-6004.05,8.219e-05,2]
[355635736,1741416638417,-503.9304206,8.219e-05,2]
[355635737,1741416638426,-500.0,8.219e-05,2]
[355635738,1741416638435,-165.503875,8.219e-05,2]
[355635739,1741416638444,-500.0,8.219e-05,2]
[355635740,1741416638453,-500.0,8.219e-05,2]
[355635741,1741416638462,-500.0,8.219e-05,2]
[355635742,1741416638471,-500.0,8.219e-05,2]
[355635743,1741416638480,-500.0,8.219e-05,2]
[355635744,1741416638489,-1126.39,8.219e-05,2]
[355635745,1741416638500,-500.0,8.219e-05,2]
[355635746,1741416638513,-503.29007645,8.219e-05,2]
[355635747,1741416638523,-500.0,8.219e-05,2]
[355635748,1741416638532,-500.0,8.219e-05,2]
[355635749,1741416638542,-547.04351433,8.219e-05,2]
[355635750,1741416638551,-5722.19,8.219e-05,2]
[355635751,1741416638560,-5008.42,8.219e-05,2]
[355635752,1741416638569,-4308.08,8.219e-05,2]
[355635753,1741416638580,-500.0,8.219e-05,2]
[355635754,1741416638590,-651.81,8.219e-05,2]
[355635755,1741416638599,-500.0,8.219e-05,2]
[355635756,1741416638608,-40018.47,8.219e-05,2]
[355635757,1741416638617,-500.0,8.219e-05,2]
[355635758,1741416638625,-500.0,8.219e-05,2]
[355635759,1741416638634,-226.04806949,8.219e-05,2]
[355635760,1741416638643,-500.0,8.219e-05,2]
[355635761,1741416638652,-1235.97,8.219e-05,2]
[355635762,1741416638661,-500.0,8.219e-05,2]
[355635763,1741416638669,-500.0,8.219e-05,2]
[355635764,1741416638678,-500.0,8.219e-05,2]
[355635765,1741416638687,-500.0,8.219e-05,2]
[355635766,1741416638696,-500.52730994,8.219e-05,2]
[355635767,1741416638705,-159.21392179,8.219e-05,2]
[355635768,1741416638714,-768.15,8.219e-05,2]
[355635769,1741416638723,-500.0,8.219e-05,2]
[355635770,1741416638735,-3940.36,8.219e-05,2]
[355635771,1741416638757,-500.0,8.219e-05,2]
[355635772,1741416638774,-500.0,8.219e-05,2]
[355635773,1741416638795,-6455.74,8.219e-05,2]
[355635774,1741416638811,-500.0,8.219e-05,2]
[355635775,1741416638829,-500.0,8.219e-05,2]
[355635776,1741416638848,-500.0,8.219e-05,2]
[355635777,1741416638867,-500.0,8.219e-05,2]
[355635778,1741416638887,-1117.99,8.219e-05,2]
[355635779,1741416638906,-736.61,8.219e-05,2]
[355635780,1741416638923,-3980.85,8.219e-05,2]
[355635781,1741416638939,-5336.18,8.219e-05,2]
[355635782,1741416638958,-815.72,8.219e-05,2]
[355635783,1741416638971,-521.7049488,8.219e-05,2]
[355635784,1741416638991,-4032.99,8.219e-05,2]
[355635785,1741416639005,-500.0,8.219e-05,2]
[355635786,1741416639021,-500.0,8.219e-05,2]
[355635787,1741416639036,-500.0,8.219e-05,2]
[355635788,1741416639052,-500.0,8.219e-05,2]
[355635789,1741416639068,-500.47024226,8.219e-05,2]
[355635790,1741416639084,-500.0,8.219e-05,2]
[355635791,1741416639100,-3347.04,8.219e-05,2]
[355635792,1741416639115,-500.0,8.219e-05,2]
[355635793,1741416639135,-503.32646996,8.219e-05,2]
[355635794,1741416639150,-2011.41,8.219e-05,2]
[355635795,1741416639165,-500.0,8.219e-05,2]
[355635796,1741416639181,-500.0,8.219e-05,2]
[355635797,1741416639196,-2246.26,8.219e-05,2]
[355635798,1741416639212,-1587.4,8.219e-05,2]
[355635799,1741416639227,-11642.79,8.219e-05,2]
[355635800,1741416639244,-500.0,8.219e-05,2]
[355635801,1741416639260,-500.0,8.219e-05,2]
[355635802,1741416639276,-377.53008507,8.219e-05,2]
[355635803,1741416639292,-500.0,8.219e-05,2]
[355635804,1741416639307,-500.0,8.219e-05,2]
[355635805,1741416639322,-769.16,8.219e-05,2]
[355635806,1741416639338,-500.0,8.219e-05,2]
[355635807,1741416639354,-500.0,8.219e-05,2]
[355635808,1741416639370,-3483.72,8.219e-05,2]
[355635809,1741416639387,-500.0,8.219e-05,2]
[355635810,1741416639402,-3892.4,8.219e-05,2]
[355635811,1741416639419,-500.0,8.219e-05,2]
[355635812,1741416639434,-502.16709289,8.219e-05,2]
[355635813,1741416639450,-500.0,8.219e-05,2]
[355635814,1741416639466,-500.0,8.219e-05,2]
[355635815,1741416639480,-500.0,8.219e-05,2]
[355635816,1741416639497,-5398.29,8.219e-05,2]
[355635817,1741416639516,-500.0,8.219e-05,2]
[355635818,1741416639532,-500.0,8.219e-05,2]
[355635819,1741416639550,-500.0,8.219e-05,2]
[355635820,1741416639567,-500.0,8.219e-05,2]
[355635821,1741416639582,-500.0,8.219e-05,2]
[355635822,1741416639599,-500.0,8.219e-05,2]
[355635823,1741416639613,-500.0,8.219e-05,2]
[355635824,1741416639628,-1001.55,8.219e-05,2]
[355635825,1741416639645,-503.44606156,8.219e-05,2]
[355635826,1741416639660,-969.97,8.219e-05,2]
[355635827,1741416639677,-500.0,8.219e-05,2]
[355635828,1741416639693,-8294.5,8.219e-05,2]
[355635829,1741416639709,-503.1621725,8.219e-05,2]
[355635830,1741416639725,-3434.58,8.219e-05,2]
[355635831,1741416639740,-1616.03,8.219e-05,2]
[355635832,1741416639756,-1339.47,8.219e-05,2]
[355635834,1741416639772,-507.33769087,8.219e-05,2]
[355635836,1741416639788,-484.67507211,8.219e-05,2]
[355635838,1741416639803,-500.0,8.219e-05,2]
[355635841,1741416639818,-3721.4,8.219e-05,2]
[355635844,1741416639834,-1421.06,8.219e-05,2]
[355635847,1741416639851,-500.0,8.219e-05,2]
[355635848,1741416639867,-500.0,8.219e-05,2]
[355635849,1741416639884,-948.2,8.219e-05,2]
[355635850,1741416639901,-500.0,8.219e-05,2]
[355635851,1741416639917,-13143.98,8.219e-05,2]
[355635852,1741416639934,-500.0,8.219e-05,2]
[355635853,1741416639951,-503.00634169,8.219e-05,2]
[355635854,1741416639968,-519.03520507,8.219e-05,2]
[355635855,1741416639983,-500.0,8.219e-05,2]
[355635856,1741416639999,-504.29392721,8.219e-05,2]
[355635857,1741416640014,-500.0,8.219e-05,2]
[355635858,1741416640031,-500.0,8.219e-05,2]
[355635859,1741416640048,-1045.68,8.219e-05,2]
[355635860,1741416640065,-1665.61,8.219e-05,2]
[355635861,1741416640080,-500.0,8.219e-05,2]
[355635862,1741416640097,-505.62473861,8.219e-05,2]
[355635863,1741416640107,-500.0,8.219e-05,2]
[355635864,1741416640117,-2850.6,8.219e-05,2]
[355635865,1741416640127,-500.0,8.219e-05,2]
[355635866,1741416640138,-511.0426967,8.219e-05,2]
[355635867,1741416640147,-500.0,8.219e-05,2]
[355635868,1741416640157,-500.0,8.219e-05,2]
[355635869,1741416640167,-1452.41,8.219e-05,2]
[355635870,1741416640177,-1087.27,8.219e-05,2]
[355635871,1741416640187,-345.28388895,8.219e-05,2]
[355635876,1741416640476,-546.37426023,8.219e-05,2]
[355635877,1741416640518,-1167.28,8.219e-05,2]
[355635878,1741416640532,-500.0,8.219e-05,2]
[355635879,1741416640544,-500.0,8.219e-05,2]
[355635880,1741416640553,-3041.96,8.219e-05,2]
[355635881,1741416640564,-4753.08,8.219e-05,2]
[355635882,1741416640573,-9999.99,8.219e-05,2]
[355635883,1741416640583,-751.83,8.219e-05,2]
[355635884,1741416640592,-500.0,8.219e-05,2]
[355635885,1741416640601,-500.0,8.219e-05,2]
[355635886,1741416640610,-1992.23,8.219e-05,2]
[355635887,1741416640619,-1164.6,8.219e-05,2]
[355635888,1741416640627,-694.48,8.219e-05,2]
[355635889,1741416640637,-500.0,8.219e-05,2]
[355635890,1741416640646,-482.42,8.219e-05,2]
[355635891,1741416640655,-500.0,8.219e-05,2]
[355635892,1741416640664,-500.0,8.219e-05,2]
[355635893,1741416640673,-500.0,8.219e-05,2]
[355635894,1741416640683,-500.0,8.219e-05,2]
[355635895,1741416640692,-500.0,8.219e-05,2]
[355635896,1741416640702,-2941.33,8.219e-05,2]
[355635897,1741416640711,-1894.5,8.219e-05,2]
[355635898,1741416640721,-501.74274712,8.219e-05,2]
[355635899,1741416640729,-5940.7,8.219e-05,2]
[355635900,1741416640739,-500.0,8.219e-05,2]
[355635901,1741416640748,-513.9732675,8.219e-05,2]
[355635902,1741416640757,-1017.04,8.219e-05,2]
[355635903,1741416640766,-1815.2,8.219e-05,2]
[355635904,1741416640776,-500.0,8.219e-05,2]
[355635905,1741416640785,-501.2516065,8.219e-05,2]
[355635906,1741416640795,-500.0,8.219e-05,2]
[355635907,1741416640805,-500.0,8.219e-05,2]
[355635908,1741416640814,-528.74,8.219e-05,2]
[355635909,1741416640823,-6747.11,8.219e-05,2]
[355635910,1741416640832,-615.12,8.219e-05,2]
[355635911,1741416640842,-500.0,8.219e-05,2]
[355635912,1741416640851,-500.0,8.219e-05,2]
[355635913,1741416640861,-500.0,8.219e-05,2]
[355635914,1741416640871,-500.0,8.219e-05,2]
[355635915,1741416640880,-4517.93,8.219e-05,2]
[355635916,1741416640890,-2552.61,8.219e-05,2]
[355635917,1741416640900,-500.0,8.219e-05,2]
[355635918,1741416640909,-500.0,8.219e-05,2]
[355635919,1741416640918,-500.0,8.219e-05,2]
[355635920,1741416640928,-4854.12,8.219e-05,2]
[355635921,1741416640936,-348.17235119,8.219e-05,2]
[355635922,1741416640946,-500.0,8.219e-05,2]
[355635923,1741416640955,-500.0,8.219e-05,2]
[355635924,1741416640964,-902.59,8.219e-05,2]
[355635925,1741416640974,-500.0,8.219e-05,2]
[355635926,1741416640984,-1274.69,8.219e-05,2]
[355635927,1741416640994,-504.87611114,8.219e-05,2]
[355635928,1741416641004,-500.0,8.219e-05,2]
[355635929,1741416641013,-3005.31,8.219e-05,2]
[355635930,1741416641023,-500.0,8.219e-05,2]
[355635931,1741416641032,-500.0,8.219e-05,2]
[355635932,1741416641042,-703.09,8.219e-05,2]
[355635933,1741416641051,-500.0,8.219e-05,2]
[355635934,1741416641061,-500.0,8.219e-05,2]
[355635935,1741416641071,-6062.62,8.219e-05,2]
[355635936,1741416641080,-500.0,8.219e-05,2]
[355635937,1741416641090,-500.0,8.219e-05,2]
[355635938,1741416641100,-500.0,8.219e-05,2]
[355635939,1741416641109,-839.95,8.219e-05,2]
[355635940,1741416641118,-500.0,8.219e-05,2]
[355635941,1741416641127,-508.69471197,8.219e-05,2]
[355635942,1741416641137,-7291.25,8.219e-05,2]
[355635943,1741416641146,-1091.74,8.219e-05,2]
[355635944,1741416641155,-506.72569723,8.219e-05,2]
[355635945,1741416641164,-457.67713971,8.219e-05,2]
[355635946,1741416641173,-500.0,8.219e-05,2]
[355635947,1741416641182,-500.0,8.219e-05,2]
[355635948,1741416641191,-2233.36,8.219e-05,2]
[355635949,1741416641200,-514.81198949,8.219e-05,2]
[355635950,1741416641209,-500.0,8.219e-05,2]
[355635951,1741416641218,-1304.23,8.219e-05,2]
[355635952,1741416641227,-1439.31,8.219e-05,2]
[355635953,1741416641236,-500.0,8.219e-05,2]
[355635954,1741416641245,-500.0,8.219e-05,2]
[355635955,1741416641255,-2844.0,8.219e-05,2]
[355635956,1741416641263,-500.0,8.219e-05,2]
[355635957,1741416641273,-500.0,8.219e-05,2]
[355635958,1741416641281,-500.0,8.219e-05,2]
[355635959,1741416641290,-500.0,8.219e-05,2]
[355635960,1741416641298,-503.27892289,8.219e-05,2]
[355635961,1741416641307,-1327.52,8.219e-05,2]
[355635962,1741416641316,-501.11072964,8.219e-05,2]
[355635963,1741416641324,-500.0,8.219e-05,2]
[355635964,1741416641333,-500.0,8.219e-05,2]
[355635965,1741416641342,-500.0,8.219e-05,2]
[355635966,1741416641351,-504.63178582,8.219e-05,2]
[355635967,1741416641360,-1836.18,8.219e-05,2]
[355635968,1741416641369,-1931.09,8.219e-05,2]
[355635969,1741416641378,-500.0,8.219e-05,2]
[355635970,1741416641387,-501.33605394,8.219e-05,2]
[355635971,1741416641396,-500.0,8.219e-05,2]
[355635972,1741416641405,-4505.17,8.219e-05,2]
[355635973,1741416641414,-500.0,8.219e-05,2]
[355635974,1741416641423,-3165.59,8.219e-05,2]
[355635975,1741416641432,-500.0,8.219e-05,2]
[355635976,1741416641441,-500.0,8.219e-05,2]
[355635977,1741416641450,-500.0,8.219e-05,2]
[355635978,1741416641459,-500.0,8.219e-05,2]
[355635979,1741416641467,-500.0,8.219e-05,2]
[355635980,1741416641476,-553.35166081,8.219e-05,2]
[355635981,1741416641485,-1932.17705636,8.219e-05,2]
[355635982,1741416641494,-3080.74,8.219e-05,2]
[355635983,1741416641506,-500.0,8.219e-05,2]
[355635984,1741416641515,-500.0,8.219e-05,2]
[355635985,1741416641524,-503.23788128,8.219e-05,2]
[355635986,1741416641533,-504.04130827,8.219e-05,2]
[355635987,1741416641542,-500.0,8.219e-05,2]
[355635988,1741416641552,-500.0,8.219e-05,2]
[355635989,1741416641561,-506.48857489,8.219e-05,2]
[355635990,1741416641570,-1611.75,8.219e-05,2]
[355635991,1741416641581,-501.31324623,8.219e-05,2]
[355635992,1741416641590,-3526.46,8.219e-05,2]